[Event "Deutscher Jugend Online Cup 2020"]
[Site "Tornelo"]
[Date "2020.11.14"]
[Round "1.1"]
[White "Wagner, Margarethe"]
[Black "Becker, Linda"]
[Result "1/2-1/2"]
[ECO "C02"]
[WhiteElo "1841"]
[BlackElo "1763"]
[Annotator "NA RC"]
[PlyCount "135"]
[EventDate "2020.11.13"]
[EventType "k.o."]
[SourceTitle "playchess.com"]
[Source "ChessBase"]
[SourceQuality "1"]
[TimeControl "600+3"]

1. e4 {[%emt 0:00:00]} e6 {[%emt 0:00:09]} 2. d4 {[%emt 0:00:03]} d5 {[%emt 0:00:03]} 3. e5 {[%emt 0:00:02]} c5 {[%emt 0:00:02]} 4. c3 {[%emt 0:00:04]} Ne7 {[%emt 0:00:06]} 5. Nf3 {[%emt 0:00:07]} Nec6 {[%emt 0:00:10]} 6. a3 {[%emt 0:00:38]} b6 {[%emt 0:00:21]} 7. Be2 {[%emt 0:00:31]} Ba6 {[%emt 0:00:30]} 8. b4 {[%emt 0:00:49]} Bxe2 {[%emt 0:00:13]} 9. Qxe2 {[%emt 0:00:04]} cxd4 {[%emt 0:00:19]} 10. cxd4 {[%emt 0:00:07]} Nd7 {[%emt 0:00:16]} 11. O-O {[%emt 0:00:16]} Be7 {[%emt 0:00:06]} 12. Nc3 {[%emt 0:00:49]} O-O {[%emt 0:00:21]} 13. Bd2 {[%emt 0:00:38]} Rc8 {[%emt 0:00:20]} 14. Rac1 {[%emt 0:00:02]} Re8 {[%emt 0:00:23]} 15. Rfd1 {[%emt 0:00:22]} Bf8 {[%emt 0:00:18]} (15... Ndb8 $14) 16. Bf4 {[%emt 0:00:43]} f6 {[%emt 0:00:33]} 17. Nb5 {[%emt 0:00:20]} a6 {[%emt 0:00:37]} 18. Nd6 {[%emt 0:00:37]} Bxd6 {[%emt 0:00:05]} 19. exd6 {[%emt 0:00:01]} Nf8 {[%emt 0:00:57]} ({Better is} 19... b5 $1 $14) 20. Qxa6 {[%emt 0:00:29]} Ng6 $2 {[%emt 0:00:20]} (20... g5 $16 {might work better.}) 21. Bg3 {[%emt 0:00:11]} Ra8 {[%emt 0:00:31]} (21... Nb8 {was necessary.} 22. Qd3 Rxc1 23. Rxc1 Qd7) 22. Qb5 {[%emt 0:00:13]} Na7 {[%emt 0:00:15] [#]} 23. Qd3 $2 {[%emt 0:00:17]} (23. Qa4 $1 $18) 23... Rc8 $2 {[%emt 0:00:08]} (23... Nc8 $14) 24. Rc7 {[%emt 0:00:07]} Rxc7 {[%emt 0:00:16]} 25. dxc7 {[%emt 0:00:03]} Qd7 {[%emt 0:00:18]} 26. Rc1 {[%emt 0:00:09]} Nc8 {[%emt 0:00:12]} 27. b5 {[%emt 0:00:09]} e5 {[%emt 0:00:09]} 28. Qc2 $2 {[%emt 0:00:25]} (28. dxe5 $18 Nxe5 29. Nxe5 fxe5 30. f3) 28... e4 {[%emt 0:00:13]} 29. Nd2 {[%emt 0:00:10]} f5 {[%emt 0:00:11]} 30. Qc6 {[%emt 0:00:04]} Qxc6 {[%emt 0:00:05]} 31. Rxc6 {[%emt 0:00:03]} f4 {[%emt 0:00:04]} 32. Rxg6 {[%emt 0:00:10]} hxg6 {[%emt 0:00:17]} 33. Bxf4 {[%emt 0:00:03]} Kf7 {[%emt 0:00:09]} 34. Nb3 {[%emt 0:01:00]} Ke6 {[%emt 0:00:12]} 35. a4 {[%emt 0:00:04]} Kf5 {[%emt 0:00:11] [#]} (35... Kd7 $11 {remains equal.}) 36. Be5 {[%emt 0:00:15]} (36. Bg3 $1 $16) 36... Re7 {[%emt 0:00:20]} (36... Ke6 $11) 37. a5 {[%emt 0:00:04]} ({White should play} 37. Bg3 $16) 37... Rxe5 {[%emt 0:00:22]} 38. dxe5 {[%emt 0:00:04]} Kxe5 {[%emt 0:00:02]} 39. Kf1 {[%emt 0:00:35]} d4 $2 {[%emt 0:00:06]} (39... bxa5 $1 $11 {and Black has nothing to worry.} 40. Nxa5 Kd6) 40. Ke2 {[%emt 0:00:07]} (40. a6 $142) 40... Kd5 {[%emt 0:00:07]} 41. axb6 {[%emt 0:00:10]} Nxb6 {[%emt 0:00:04]} 42. Na5 {[%emt 0:00:01]} Kd6 {[%emt 0:00:19]} 43. Nb7+ {[%emt 0:00:18]} Kxc7 {[%emt 0:00:23]} 44. Nc5 {[%emt 0:00:01]} d3+ {[%emt 0:00:08]} 45. Kd1 {[%emt 0:00:04]} Nc4 {[%emt 0:00:18]} 46. Nxe4 {[%emt 0:00:02]} Kb6 {[%emt 0:00:02]} 47. Nc3 {[%emt 0:00:12]} Kc5 {[%emt 0:00:10]} 48. Ne4+ {[%emt 0:00:03]} Kxb5 {[%emt 0:00:05]} 49. Nd2 {[%emt 0:00:03]} Ne5 {[%emt 0:00:10]} 50. f4 {[%emt 0:00:03]} Ng4 {[%emt 0:00:03]} 51. h3 {[%emt 0:00:06]} Ne3+ {[%emt 0:00:02]} 52. Kc1 {[%emt 0:00:08]} Nxg2 {[%emt 0:00:02]} 53. Nf3 $19 {[%emt 0:00:11]} Nxf4 {[%emt 0:00:04]} 54. h4 {[%emt 0:00:03]} Kc5 {[%emt 0:00:03]} 55. Kd2 {[%emt 0:00:01]} Kd5 {[%emt 0:00:02]} 56. Ke3 {[%emt 0:00:05]} Ng2+ {[%emt 0:00:09]} 57. Kxd3 {[%emt 0:00:02]} Ke6 {[%emt 0:00:04]} 58. Ke4 {[%emt 0:00:05]} Kf6 {[%emt 0:00:06]} 59. Kd3 {[%emt 0:00:03]} Nf4+ {[%emt 0:00:02]} 60. Ke4 {[%emt 0:00:01]} Nh5 {[%emt 0:00:02]} 61. Ke3 {[%emt 0:00:03]} Kf5 {[%emt 0:00:02]} 62. Ng5 {[%emt 0:00:04]} Kg4 {[%emt 0:00:04]} 63. Nf3 {[%emt 0:00:04]} Nf4 {[%emt 0:00:03]} 64. Kf2 {[%emt 0:00:03]} Nd3+ {[%emt 0:00:05]} 65. Kg2 {[%emt 0:00:03]} Nf4+ {[%emt 0:00:01]} 66. Kf2 {[%emt 0:00:02]} Nd3+ {[%emt 0:00:03]} 67. Kg2 {[%emt 0:00:02]} Nf4+ {[%emt 0:00:02]} 68. Kf2 {[%emt 0:00:01]} 1/2-1/2

[Event "Deutscher Jugend Online Cup 2020"]
[Site "Tornelo"]
[Date "2020.11.14"]
[Round "1.1"]
[White "Herrmann, Jakob"]
[Black "Goldmann, David"]
[Result "0-1"]
[ECO "B23"]
[WhiteElo "1515"]
[BlackElo "1644"]
[Annotator "NA RC"]
[PlyCount "78"]
[EventDate "2020.11.13"]
[EventType "k.o."]
[SourceTitle "playchess.com"]
[Source "ChessBase"]
[SourceQuality "1"]
[TimeControl "600+3"]

1. e4 {[%emt 0:00:00]} c5 {[%emt 0:00:03]} 2. Nc3 {[%emt 0:00:07]} e6 {[%emt 0:00:01]} 3. Nge2 {[%emt 0:00:06]} d5 {[%emt 0:00:04]} 4. exd5 {[%emt 0:00:10]} exd5 {[%emt 0:00:02]} 5. d4 {[%emt 0:00:02]} Nf6 {[%emt 0:00:04]} 6. g3 {[%emt 0:00:15]} Be7 {[%emt 0:00:03]} 7. Bg2 {[%emt 0:00:11]} O-O {[%emt 0:00:05]} 8. O-O {[%emt 0:00:04]} Be6 {[%emt 0:00:05]} 9. Be3 {[%emt 0:00:26]} c4 {[%emt 0:00:11]} 10. Nf4 {[%emt 0:00:41]} Nc6 {[%emt 0:00:19]} 11. b3 {[%emt 0:00:33]} Bb4 {[%emt 0:00:36]} 12. Nce2 {[%emt 0:00:58]} cxb3 {[%emt 0:00:36]} 13. axb3 {[%emt 0:00:31]} Bf5 {[%emt 0:00:36]} 14. c3 {[%emt 0:00:22]} Ba5 {[%emt 0:00:12]} 15. c4 {[%emt 0:00:19]} Ne7 {[%emt 0:00:28]} 16. Nd3 {[%emt 0:01:21]} Be4 {[%emt 0:00:57]} 17. Nc5 {[%emt 0:00:34]} Bxg2 {[%emt 0:00:21]} 18. Kxg2 {[%emt 0:00:09]} b6 {[%emt 0:01:24]} 19. Nb7 {[%emt 0:00:12]} Qd7 {[%emt 0:00:06]} 20. Nxa5 {[%emt 0:00:06]} bxa5 {[%emt 0:00:01]} 21. Rxa5 {[%emt 0:00:10]} dxc4 {[%emt 0:00:02]} 22. bxc4 {[%emt 0:00:04]} Qc6+ {[%emt 0:00:01]} 23. d5 {[%emt 0:00:29]} Qxc4 {[%emt 0:00:06]} 24. Rc5 {[%emt 0:00:14]} Qe4+ {[%emt 0:00:07]} 25. Kg1 {[%emt 0:00:22]} Nexd5 {[%emt 0:00:08]} 26. Nc3 {[%emt 0:00:47]} Nxc3 {[%emt 0:00:09]} 27. Rxc3 {[%emt 0:00:04]} Rad8 {[%emt 0:00:05]} 28. Qe2 {[%emt 0:00:08]} Nd5 {[%emt 0:00:14]} 29. Rc4 {[%emt 0:00:05]} Qe6 {[%emt 0:00:11]} 30. Re1 {[%emt 0:00:16]} Nxe3 {[%emt 0:00:03]} 31. fxe3 {[%emt 0:00:05]} Rc8 {[%emt 0:00:36]} 32. Ra4 {[%emt 0:00:16]} Qb6 {[%emt 0:00:14]} 33. Ra6 {[%emt 0:00:07]} Qc5 {[%emt 0:00:03]} 34. Qa2 {[%emt 0:00:17]} Qc3 {[%emt 0:00:16]} 35. Kf2 {[%emt 0:00:20]} Qd3 {[%emt 0:00:09]} 36. Re2 {[%emt 0:00:17]} Qf5+ {[%emt 0:00:05]} 37. Kg2 {[%emt 0:00:08]} Rc1 {[%emt 0:00:04]} 38. Rf2 {[%emt 0:00:10]} Qe4+ {[%emt 0:00:01]} 39. Rf3 {[%emt 0:00:09]} Rc2+ {[%emt 0:00:02]} 0-1

[Event "Deutscher Jugend Online Cup 2020"]
[Site "Tornelo"]
[Date "2020.11.14"]
[Round "1.1"]
[White "Haug, Mara"]
[Black "Arnold, Rubina"]
[Result "1-0"]
[ECO "B85"]
[WhiteElo "1356"]
[BlackElo "1414"]
[Annotator "NA RC"]
[PlyCount "137"]
[EventDate "2020.11.13"]
[EventType "k.o."]
[SourceTitle "playchess.com"]
[Source "ChessBase"]
[SourceQuality "1"]
[TimeControl "600+3"]

1. e4 {[%emt 0:00:00]} c5 {[%emt 0:00:11]} 2. Nf3 {[%emt 0:00:03]} e6 {[%emt 0:00:07]} 3. d4 {[%emt 0:00:03]} cxd4 {[%emt 0:00:05]} 4. Nxd4 {[%emt 0:00:01]} a6 {[%emt 0:00:07]} 5. Nc3 {[%emt 0:00:05]} Qc7 {[%emt 0:00:04]} 6. Be2 {[%emt 0:00:09]} Nf6 {[%emt 0:00:05]} 7. O-O {[%emt 0:00:39]} Nc6 {[%emt 0:00:06]} 8. Nb3 {[%emt 0:00:16]} Be7 {[%emt 0:00:09]} 9. Be3 {[%emt 0:00:11]} O-O {[%emt 0:00:32]} 10. f4 {[%emt 0:00:05]} d6 {[%emt 0:00:13]} 11. Bf3 {[%emt 0:00:17]} b5 {[%emt 0:00:53]} 12. a3 {[%emt 0:00:07]} Bb7 {[%emt 0:00:14]} 13. Qe2 {[%emt 0:00:34]} Rfd8 {[%emt 0:01:02]} 14. Rad1 {[%emt 0:00:06]} Nd7 {[%emt 0:00:32]} 15. Qf2 {[%emt 0:00:32]} Na5 {[%emt 0:00:51]} 16. Nxa5 {[%emt 0:00:52]} Qxa5 {[%emt 0:00:05]} 17. Rd2 {[%emt 0:00:51]} Qc7 {[%emt 0:00:32]} 18. Rfd1 {[%emt 0:00:08]} Nc5 {[%emt 0:00:12]} 19. b4 {[%emt 0:00:22]} Na4 {[%emt 0:00:16]} 20. Nxa4 {[%emt 0:00:05]} bxa4 {[%emt 0:00:04]} 21. Bb6 {[%emt 0:00:03]} Qc3 {[%emt 0:00:49]} 22. Bxd8 {[%emt 0:00:07]} Rxd8 {[%emt 0:00:09]} 23. Rd3 {[%emt 0:00:05]} Qb2 {[%emt 0:00:35]} 24. e5 {[%emt 0:00:35]} Bxf3 {[%emt 0:00:55]} 25. exd6 {[%emt 0:00:23]} Bf8 {[%emt 0:00:52]} 26. Rxf3 {[%emt 0:00:31]} Rxd6 {[%emt 0:00:23]} 27. Rxd6 {[%emt 0:00:52]} Bxd6 {[%emt 0:00:05]} 28. Qd2 {[%emt 0:00:19]} Bc7 {[%emt 0:00:32]} 29. h3 {[%emt 0:00:35]} Qa1+ {[%emt 0:00:36]} 30. Kh2 {[%emt 0:00:05]} g6 {[%emt 0:00:02]} 31. Kg3 {[%emt 0:00:26]} Kg7 {[%emt 0:00:07]} 32. Qc3+ {[%emt 0:00:07]} Qxc3 {[%emt 0:00:05]} 33. Rxc3 {[%emt 0:00:02]} Bb6 {[%emt 0:00:03]} 34. Rc6 {[%emt 0:00:05]} Bd4 {[%emt 0:00:04]} 35. Rxa6 {[%emt 0:00:05]} Bb2 {[%emt 0:00:02]} 36. Rxa4 {[%emt 0:00:04]} h5 {[%emt 0:00:03]} 37. b5 {[%emt 0:00:04]} Bf6 {[%emt 0:00:04]} 38. b6 {[%emt 0:00:03]} Bd8 {[%emt 0:00:02]} 39. b7 {[%emt 0:00:02]} Bc7 {[%emt 0:00:02]} 40. Rb4 {[%emt 0:00:01]} Bb8 {[%emt 0:00:03]} 41. a4 {[%emt 0:00:14]} Kf6 {[%emt 0:00:02]} 42. a5 {[%emt 0:00:02]} Ke7 {[%emt 0:00:03]} 43. a6 {[%emt 0:00:02]} Kd8 {[%emt 0:00:04]} 44. a7 {[%emt 0:00:04]} Bxa7 {[%emt 0:00:03]} 45. b8=Q+ {[%emt 0:00:03]} Bxb8 {[%emt 0:00:01]} 46. Rxb8+ {[%emt 0:00:02]} Kd7 {[%emt 0:00:03]} 47. Rb7+ {[%emt 0:00:02]} Ke8 {[%emt 0:00:02]} 48. Rb6 {[%emt 0:00:04]} Kd7 {[%emt 0:00:04]} 49. c4 {[%emt 0:00:04]} Kc7 {[%emt 0:00:02]} 50. Rb3 {[%emt 0:00:05]} f5 {[%emt 0:00:07]} 51. Kf3 {[%emt 0:00:03]} Kc6 {[%emt 0:00:04]} 52. Ke3 {[%emt 0:00:05]} Kc5 {[%emt 0:00:02]} 53. Kd3 {[%emt 0:00:01]} h4 {[%emt 0:00:04]} 54. Rb5+ {[%emt 0:00:04]} Kc6 {[%emt 0:00:02]} 55. Kd4 {[%emt 0:00:03]} Kd6 {[%emt 0:00:06]} 56. Rb6+ {[%emt 0:00:05]} Kd7 {[%emt 0:00:02]} 57. c5 {[%emt 0:00:02]} Ke7 {[%emt 0:00:03]} 58. Ke5 {[%emt 0:00:02]} Kd7 {[%emt 0:00:03]} 59. c6+ {[%emt 0:00:09]} Kc7 {[%emt 0:00:03]} 60. Ra6 {[%emt 0:00:03]} Kc8 {[%emt 0:00:04]} 61. Ra7 {[%emt 0:00:04]} Kb8 {[%emt 0:00:02]} 62. Re7 {[%emt 0:00:03]} Kc8 {[%emt 0:00:02]} 63. Kd6 {[%emt 0:00:01]} Kd8 {[%emt 0:00:03]} 64. c7+ {[%emt 0:00:02]} Kc8 {[%emt 0:00:02]} 65. Re8+ {[%emt 0:00:03]} Kb7 {[%emt 0:00:01]} 66. c8=Q+ {[%emt 0:00:02]} Ka7 {[%emt 0:00:04]} 67. Qc5+ {[%emt 0:00:04]} Kb7 {[%emt 0:00:04]} 68. Re7+ {[%emt 0:00:02]} Ka6 {[%emt 0:00:05]} 69. Kc6 {[%emt 0:00:02]} 1-0

[Event "Deutscher Jugend Online Cup 2020"]
[Site "Tornelo"]
[Date "2020.11.14"]
[Round "1.1"]
[White "Hoffmann, Svenja"]
[Black "B___, L___"]
[Result "0-1"]
[ECO "B76"]
[WhiteElo "1307"]
[BlackElo "1348"]
[Annotator "NA RC"]
[PlyCount "132"]
[EventDate "2020.11.13"]
[EventType "k.o."]
[SourceTitle "playchess.com"]
[Source "ChessBase"]
[SourceQuality "1"]
[TimeControl "600+3"]

1. e4 {[%emt 0:00:00]} c5 {[%emt 0:00:04]} 2. Nf3 {[%emt 0:00:06]} g6 {[%emt 0:00:07]} 3. d4 {[%emt 0:00:03]} cxd4 {[%emt 0:00:04]} 4. Nxd4 {[%emt 0:00:03]} Nc6 {[%emt 0:00:05]} 5. Nc3 {[%emt 0:00:05]} Nf6 {[%emt 0:00:27]} 6. f3 {[%emt 0:00:10]} Nxd4 {[%emt 0:00:26]} 7. Qxd4 {[%emt 0:00:04]} Bg7 {[%emt 0:00:05]} 8. Qd3 {[%emt 0:00:09]} O-O {[%emt 0:00:24]} 9. Be3 {[%emt 0:00:05]} d6 {[%emt 0:00:11]} 10. O-O-O {[%emt 0:00:05]} Be6 {[%emt 0:00:12]} 11. Qd2 {[%emt 0:00:07]} Qa5 {[%emt 0:00:17]} 12. Kb1 {[%emt 0:00:14]} Rfc8 {[%emt 0:00:11]} 13. a3 {[%emt 0:00:26]} a6 {[%emt 0:00:50]} 14. Bh6 {[%emt 0:00:17]} Bh8 {[%emt 0:01:05]} 15. h4 {[%emt 0:00:42]} Qc5 {[%emt 0:00:54]} 16. g4 {[%emt 0:00:13]} b5 {[%emt 0:00:11]} 17. h5 {[%emt 0:00:11]} b4 {[%emt 0:00:42]} 18. axb4 {[%emt 0:00:14]} Qxb4 {[%emt 0:00:04]} 19. hxg6 {[%emt 0:00:12]} fxg6 {[%emt 0:00:12]} 20. Qd4 {[%emt 0:01:32]} Qxd4 {[%emt 0:00:49]} 21. Rxd4 {[%emt 0:00:04]} Nxg4 {[%emt 0:00:13]} 22. Rd2 {[%emt 0:00:10]} Rab8 {[%emt 0:00:04]} 23. fxg4 {[%emt 0:00:05]} Bxc3 {[%emt 0:00:05]} 24. Rf2 {[%emt 0:00:13]} Rxb2+ {[%emt 0:00:09]} 25. Kc1 {[%emt 0:00:02]} Rcb8 {[%emt 0:00:09]} 26. Kd1 {[%emt 0:00:46]} Bxg4+ {[%emt 0:00:03]} 27. Be2 {[%emt 0:00:18]} Rb1+ {[%emt 0:00:07]} 28. Bc1 {[%emt 0:00:05]} Bxe2+ {[%emt 0:00:12]} 29. Rxe2 {[%emt 0:00:03]} Ra1 {[%emt 0:00:13]} 30. Rf2 {[%emt 0:01:33]} Rbb1 {[%emt 0:00:15]} 31. Ke2 {[%emt 0:00:11]} Rxc1 {[%emt 0:00:07]} 32. Rxc1 {[%emt 0:00:03]} Rxc1 {[%emt 0:00:02]} 33. Kd3 {[%emt 0:00:02]} Be5 {[%emt 0:00:04]} 34. Kd2 {[%emt 0:00:04]} Ra1 {[%emt 0:00:03]} 35. Kd3 {[%emt 0:00:20]} a5 {[%emt 0:00:02]} 36. Kc4 {[%emt 0:00:03]} a4 {[%emt 0:00:02]} 37. Kb4 {[%emt 0:00:08]} a3 {[%emt 0:00:02]} 38. Kb3 {[%emt 0:00:03]} a2 {[%emt 0:00:02]} 39. Re2 {[%emt 0:00:25]} Rb1+ {[%emt 0:00:03]} 40. Kxa2 {[%emt 0:00:02]} Ra1+ {[%emt 0:00:05]} 41. Kb3 {[%emt 0:00:02]} h5 {[%emt 0:00:03]} 42. Kc4 {[%emt 0:00:05]} Rh1 {[%emt 0:00:05]} 43. Rg2 {[%emt 0:00:06]} Kh7 {[%emt 0:00:04]} 44. Kd5 {[%emt 0:00:05]} h4 {[%emt 0:00:13]} 45. Ke6 {[%emt 0:00:04]} Bf6 {[%emt 0:00:06]} 46. Kf7 {[%emt 0:00:32]} g5 {[%emt 0:00:05]} 47. Ke6 {[%emt 0:00:06]} h3 {[%emt 0:00:04]} 48. Rf2 {[%emt 0:00:16]} Re1 {[%emt 0:00:04]} 49. Kf5 {[%emt 0:00:11]} Kh6 {[%emt 0:00:15]} 50. Kg4 {[%emt 0:00:04]} Rxe4+ {[%emt 0:00:04]} 51. Kxh3 {[%emt 0:00:02]} Rh4+ {[%emt 0:00:03]} 52. Kg3 {[%emt 0:00:02]} Be5+ {[%emt 0:00:09]} 53. Kf3 {[%emt 0:00:08]} Rf4+ {[%emt 0:00:02]} 54. Ke2 {[%emt 0:00:03]} Rxf2+ {[%emt 0:00:02]} 55. Kxf2 {[%emt 0:00:02]} g4 {[%emt 0:00:02]} 56. Kg2 {[%emt 0:00:02]} g3 {[%emt 0:00:02]} 57. c4 {[%emt 0:00:03]} Bf4 {[%emt 0:00:12]} 58. Kh3 {[%emt 0:00:03]} Kg6 {[%emt 0:00:03]} 59. Kg2 {[%emt 0:00:03]} Kf5 {[%emt 0:00:02]} 60. Kf3 {[%emt 0:00:03]} e5 {[%emt 0:00:02]} 61. Ke2 {[%emt 0:00:06]} e4 {[%emt 0:00:05]} 62. Kf1 {[%emt 0:00:06]} e3 {[%emt 0:00:03]} 63. Kg2 {[%emt 0:00:05]} e2 {[%emt 0:00:02]} 64. Kh3 {[%emt 0:00:02]} e1=Q {[%emt 0:00:04]} 65. Kg2 {[%emt 0:00:10]} Qf2+ {[%emt 0:00:04]} 66. Kh3 {[%emt 0:00:04]} Qh2# {[%emt 0:00:02]} 0-1

[Event "Deutscher Jugend Online Cup 2020"]
[Site "Tornelo"]
[Date "2020.11.14"]
[Round "1.2"]
[White "Bildat, Emilia"]
[Black "Sereda, Yaroslava"]
[Result "1-0"]
[ECO "A07"]
[WhiteElo "1852"]
[BlackElo "1750"]
[Annotator "NA RC"]
[PlyCount "111"]
[EventDate "2020.11.13"]
[EventType "k.o."]
[SourceTitle "playchess.com"]
[Source "ChessBase"]
[SourceQuality "1"]
[TimeControl "600+3"]

1. c4 {[%emt 0:00:00]} Nf6 {[%emt 0:00:06]} 2. g3 {[%emt 0:00:04]} c6 {[%emt 0:00:05]} 3. Bg2 {[%emt 0:00:05]} d5 {[%emt 0:00:07]} 4. Nf3 {[%emt 0:00:20]} g6 {[%emt 0:00:33]} 5. O-O {[%emt 0:00:19]} Bg7 {[%emt 0:00:07]} 6. d3 {[%emt 0:00:24]} O-O {[%emt 0:00:09]} 7. Nbd2 {[%emt 0:00:16] 7.Nc3 injects fresh life into this line.} Nbd7 {[%emt 0:01:53]} 8. Rb1 {[%emt 0:00:15]} e5 {[%emt 0:00:54]} 9. b3 {[%emt 0:01:33]} Re8 {[%emt 0:00:30]} 10. Bb2 {[%emt 0:00:18]} a5 {[%emt 0:00:18] [#]} 11. Re1 $146 {[%emt 0:00:48]} ({Predecessor:} 11. cxd5 Nxd5 12. a3 Nf8 13. Qc2 Bg4 14. h3 Bxf3 15. Nxf3 Qe7 16. Nd2 Nc7 17. Nc4 {½-½ (30) Egenolf,D (1906)-Calvi,S (2054) Frankfurt 2014}) 11... Qc7 {[%emt 0:00:21]} ({Black should play} 11... e4 $15 12. Nd4 e3 13. fxe3 Ng4) 12. Qc2 {[%emt 0:00:30]} Qd6 {[%emt 0:00:40]} 13. Kh1 {[%emt 0:00:31]} (13. cxd5 $11 Nxd5 14. a3) 13... b5 {[%emt 0:00:20]} 14. e3 {[%emt 0:00:19]} Bb7 {[%emt 0:00:13]} 15. d4 {[%emt 0:00:36]} Ng4 {[%emt 0:00:48]} 16. Kg1 {[%emt 0:00:42]} (16. Nxe5 $11 Ndxe5 17. dxe5 Nxe5 18. Red1) 16... e4 {[%emt 0:00:10]} 17. Ng5 {[%emt 0:00:04]} Qf6 {[%emt 0:00:41] [#]} 18. f3 $2 {[%emt 0:00:26]} (18. Ngxe4 $1 $11 {[%mdl 512] and White is okay.} dxe4 19. Nxe4) 18... Qxg5 {[%emt 0:00:12]} 19. fxg4 {[%emt 0:00:04]} Qxg4 {[%emt 0:00:04]} 20. Rf1 {[%emt 0:00:16]} Rac8 {[%emt 0:00:05]} 21. Rf2 {[%emt 0:00:11]} Nf8 {[%emt 0:00:32]} 22. Rbf1 {[%emt 0:00:05]} f6 {[%emt 0:00:21]} 23. Qd1 {[%emt 0:00:22]} Qxd1 {[%emt 0:00:04]} 24. Rxd1 {[%emt 0:00:01]} Ne6 {[%emt 0:00:02]} 25. Bh3 {[%emt 0:00:11]} Rc7 {[%emt 0:00:07]} 26. Rdf1 {[%emt 0:00:11]} Ng5 {[%emt 0:00:02]} 27. Bg2 {[%emt 0:00:02]} bxc4 {[%emt 0:00:03]} 28. bxc4 {[%emt 0:00:03]} Ba6 {[%emt 0:00:02]} 29. Rc1 {[%emt 0:00:04]} Rb8 {[%emt 0:00:05]} 30. Ba3 {[%emt 0:00:04]} Rcb7 {[%emt 0:00:10]} 31. cxd5 {[%emt 0:00:07]} cxd5 {[%emt 0:00:04]} 32. Nb3 {[%emt 0:00:04]} Bc4 {[%emt 0:00:04]} ({Black should try} 32... Ne6 $17 33. Nxa5 Rb1) 33. Nc5 $2 {[%emt 0:00:10]} (33. Nxa5 $14 {is the one way to stay ahead.} Rb1 34. Nxc4 dxc4 35. Rfc2) 33... Rb1 {[%emt 0:00:09]} 34. Nd7 {[%emt 0:00:26]} (34. Rfc2 $17) 34... Rxc1+ {[%emt 0:00:04]} 35. Bxc1 {[%emt 0:00:02]} Rb1 {[%emt 0:00:03]} 36. Rc2 {[%emt 0:00:09]} Kf7 {[%emt 0:00:10]} 37. a3 {[%emt 0:00:14]} Ne6 {[%emt 0:00:12]} 38. Nc5 {[%emt 0:00:11]} Nc7 {[%emt 0:00:06]} 39. Kf2 {[%emt 0:00:08]} Nb5 {[%emt 0:00:04]} 40. a4 {[%emt 0:00:15]} Nc7 {[%emt 0:00:14]} 41. Bd2 {[%emt 0:00:11]} Ne6 {[%emt 0:00:10]} 42. Nxe6 {[%emt 0:00:05]} Kxe6 {[%emt 0:00:03]} 43. Bh3+ {[%emt 0:00:02]} Kd6 {[%emt 0:00:04]} 44. Bxa5 {[%emt 0:00:05]} Ra1 {[%emt 0:00:11]} 45. Bb4+ {[%emt 0:00:02]} Kc6 {[%emt 0:00:10]} 46. a5 {[%emt 0:00:02]} f5 {[%emt 0:00:07]} 47. g4 {[%emt 0:00:07]} fxg4 {[%emt 0:00:03]} 48. Bxg4 {[%emt 0:00:02]} h5 {[%emt 0:00:11]} (48... Bf6 $15) 49. Bh3 {[%emt 0:00:03]} (49. Be2 $11 {keeps the balance.}) 49... g5 {[%emt 0:00:03]} (49... Rb1 $17 50. Bd2 Kd6) 50. Bf5 {[%emt 0:00:04]} Rf1+ {[%emt 0:00:04]} 51. Kg2 {[%emt 0:00:08]} Rxf5 {[%emt 0:00:03]} 52. Rc1 {[%emt 0:00:12]} Rf8 {[%emt 0:00:04]} 53. Bxf8 {[%emt 0:00:03]} Bxf8 {[%emt 0:00:02]} 54. Ra1 {[%emt 0:00:04]} Kb5 {[%emt 0:00:05]} 55. a6 {[%emt 0:00:04]} Kb6 {[%emt 0:00:21]} 56. a7 {[%emt 0:00:03]} 1-0

[Event "Deutscher Jugend Online Cup 2020"]
[Site "Tornelo"]
[Date "2020.11.14"]
[Round "1.2"]
[White "Braeutigam, Katerina"]
[Black "Wilmink, Anna"]
[Result "1-0"]
[ECO "C42"]
[WhiteElo "1737"]
[BlackElo "1550"]
[Annotator "NA RC"]
[PlyCount "119"]
[EventDate "2020.11.13"]
[EventType "k.o."]
[SourceTitle "playchess.com"]
[Source "ChessBase"]
[SourceQuality "1"]
[TimeControl "600+3"]

1. e4 {[%emt 0:00:00]} e5 {[%emt 0:00:14]} 2. Nf3 {[%emt 0:00:06]} Nf6 {[%emt 0:00:04]} 3. Nxe5 {[%emt 0:00:07]} d6 {[%emt 0:00:05]} 4. Nf3 {[%emt 0:00:03]} Nxe4 {[%emt 0:00:05]} 5. Be2 {[%emt 0:00:12]} Nc6 {[%emt 0:00:28]} 6. O-O {[%emt 0:00:15]} g6 {[%emt 0:00:06]} 7. Re1 {[%emt 0:00:09]} Be6 {[%emt 0:00:05]} 8. Bb5 {[%emt 0:00:31]} Nf6 {[%emt 0:00:25]} 9. Nd4 {[%emt 0:00:14]} Qd7 {[%emt 0:00:20]} 10. Qf3 {[%emt 0:00:42]} Bg7 {[%emt 0:01:18]} 11. Nxc6 {[%emt 0:00:41]} O-O {[%emt 0:01:06]} 12. Nd4 {[%emt 0:01:15]} c6 {[%emt 0:00:55]} 13. Bf1 {[%emt 0:03:05]} Bg4 {[%emt 0:00:53]} 14. Qd3 {[%emt 0:00:48]} Nd5 {[%emt 0:01:39]} 15. Nc3 {[%emt 0:01:45]} Nb4 {[%emt 0:01:28]} 16. Qc4 {[%emt 0:00:24]} c5 {[%emt 0:00:21]} 17. a3 {[%emt 0:00:27]} cxd4 {[%emt 0:00:24]} 18. Qxb4 {[%emt 0:00:04]} dxc3 {[%emt 0:00:02]} 19. dxc3 {[%emt 0:00:02]} Rfe8 {[%emt 0:00:04]} 20. Bf4 {[%emt 0:00:04]} Be5 {[%emt 0:00:09]} 21. Bxe5 {[%emt 0:00:05]} dxe5 {[%emt 0:00:02]} 22. Bb5 {[%emt 0:00:04]} Qe7 {[%emt 0:00:19]} 23. Bxe8 {[%emt 0:00:02]} Qxe8 {[%emt 0:00:02]} 24. Qxb7 {[%emt 0:00:02]} Rb8 {[%emt 0:00:03]} 25. Qd5 {[%emt 0:00:02]} Rxb2 {[%emt 0:00:03]} 26. Qxe5 {[%emt 0:00:02]} Qxe5 {[%emt 0:00:03]} 27. Rxe5 {[%emt 0:00:03]} Rxc2 {[%emt 0:00:02]} 28. Rc5 {[%emt 0:00:02]} Rd2 {[%emt 0:00:05]} 29. h3 {[%emt 0:00:02]} Bf5 {[%emt 0:00:03]} 30. Rc7 {[%emt 0:00:01]} Rd8 {[%emt 0:00:05]} 31. Rxa7 {[%emt 0:00:02]} Rc8 {[%emt 0:00:01]} 32. Rc1 {[%emt 0:00:02]} Kf8 {[%emt 0:00:04]} 33. c4 {[%emt 0:00:03]} Be6 {[%emt 0:00:07]} 34. c5 {[%emt 0:00:02]} Rc6 {[%emt 0:00:08]} 35. Ra8+ {[%emt 0:00:03]} Ke7 {[%emt 0:00:07]} 36. Rb8 {[%emt 0:00:03]} Kd7 {[%emt 0:00:11]} 37. Rb6 {[%emt 0:00:03]} Rc8 {[%emt 0:00:04]} 38. c6+ {[%emt 0:00:02]} Kc7 {[%emt 0:00:02]} 39. Rb2 {[%emt 0:00:03]} Bd5 {[%emt 0:00:04]} 40. Rb7+ {[%emt 0:00:03]} Kd6 {[%emt 0:00:03]} 41. Rd7+ {[%emt 0:00:02]} Ke6 {[%emt 0:00:02]} 42. Re1+ {[%emt 0:00:08]} Kf6 {[%emt 0:00:04]} 43. Rxd5 {[%emt 0:00:02]} Rxc6 {[%emt 0:00:01]} 44. Red1 {[%emt 0:00:03]} Kg7 {[%emt 0:00:04]} 45. Ra1 {[%emt 0:00:04]} Ra6 {[%emt 0:00:02]} 46. a4 {[%emt 0:00:01]} Ra8 {[%emt 0:00:03]} 47. a5 {[%emt 0:00:02]} Ra6 {[%emt 0:00:02]} 48. Rb5 {[%emt 0:00:06]} Kf8 {[%emt 0:00:02]} 49. Rb6 {[%emt 0:00:02]} Ra8 {[%emt 0:00:03]} 50. a6 {[%emt 0:00:02]} Ke7 {[%emt 0:00:07]} 51. a7 {[%emt 0:00:02]} Kd7 {[%emt 0:00:03]} 52. Rb8 {[%emt 0:00:02]} Rxb8 {[%emt 0:00:07]} 53. axb8=Q {[%emt 0:00:04]} Kc6 {[%emt 0:00:02]} 54. Rc1+ {[%emt 0:00:03]} Kd7 {[%emt 0:00:04]} 55. Qc7+ {[%emt 0:00:03]} Ke6 {[%emt 0:00:03]} 56. Re1+ {[%emt 0:00:07]} Kd5 {[%emt 0:00:02]} 57. Re5+ {[%emt 0:00:05]} Kd4 {[%emt 0:00:04]} 58. Qc5+ {[%emt 0:00:01]} Kd3 {[%emt 0:00:03]} 59. Re3+ {[%emt 0:00:03]} Kd2 {[%emt 0:00:02]} 60. Qc3+ {[%emt 0:00:03]} 1-0